fUST/lending_fUST_20240423
["ID","MTS","AMOUNT","RATE_DAILY","PERIOD"]
[323244892,1713839446783,-500.0,0.00026849,2]
[323244893,1713839446792,-549.8,0.00026849,2]
[323244894,1713839446802,-521.89,0.00026849,2]
[323244895,1713839446813,-550.03,0.00026849,2]
[323244896,1713839446822,-500.0,0.00026849,2]
[323244897,1713839446831,-629.55,0.00026849,2]
[323244898,1713839446843,-545.56,0.00026849,2]
[323244899,1713839446852,-1417.58,0.00026849,2]
[323244900,1713839446861,-1815.54,0.00026849,2]
[323244901,1713839446871,-500.0,0.00026849,2]
[323244902,1713839446880,-1763.16,0.00026849,2]
[323244903,1713839446889,-500.0,0.00026849,2]
[323244904,1713839446898,-500.0,0.00026849,2]
[323244905,1713839446907,-2362.86,0.00026849,2]
[323244906,1713839446917,-500.0,0.00026849,2]
[323244907,1713839446927,-643.4,0.00026849,2]
[323244908,1713839446936,-3374.35,0.00026849,2]
[323244909,1713839446945,-1027.25,0.00026849,2]
[323244910,1713839446955,-534.71,0.00026849,2]
[323244911,1713839446965,-605.52569592,0.00026849,2]
[323244912,1713839446974,-500.0,0.00026849,2]
[323244913,1713839446983,-583.45,0.00026849,2]
[323244922,1713839446992,-1572.23,0.00026849,2]
[323244926,1713839447096,-427.39913948,0.00026849,2]
[323244928,1713839447106,-294.987888,0.00026849,2]
[323244930,1713839447114,-3148.3,0.00026849,2]
[323244932,1713839447124,-294.987888,0.00026849,2]
[323244933,1713839447133,-1773.12,0.00026849,2]
[323244935,1713839447142,-500.0,0.00026849,2]
[323244937,1713839447151,-8801.41,0.00026849,2]
[323244939,1713839447160,-771.77,0.00026849,2]
[323244941,1713839447170,-778.86,0.00026849,2]
[323244943,1713839447180,-2087.97,0.00026849,2]
[323244945,1713839447189,-514.65,0.00026849,2]
[323244947,1713839447199,-163.76753767,0.00026914,2]
[323244949,1713839447209,-332.41265901,0.00027,20]
[323244951,1713839447218,-8517.27109812,0.00027,2]
[323244953,1713839447227,-154.82968734,0.00027,2]
[323244955,1713839447237,-612.27031471,0.00027,2]
[323244957,1713839447246,-154.30051212,0.00027,2]
[323244959,1713839447256,-151.0,0.00027,2]
[323244961,1713839447265,-151.0,0.00027,2]
[323244963,1713839447275,-620.00000158,0.00027022,2]
[323244965,1713839447285,-500.0,0.00027123,2]
[323244967,1713839447295,-500.0,0.00027123,2]
[323244969,1713839447304,-500.0,0.00027123,2]
[323244971,1713839447314,-508.56,0.00027123,2]
[323244973,1713839447323,-500.0,0.00027123,2]
[323244975,1713839447331,-500.0,0.00027123,2]
[323244977,1713839447340,-500.0,0.00027123,2]
[323244979,1713839447349,-500.0,0.00027123,2]
[323244981,1713839447358,-500.0,0.00027123,2]
[323244983,1713839447367,-500.0,0.00027123,2]
[323244985,1713839447376,-500.0,0.00027123,2]
[323244987,1713839447385,-1094.07,0.00027123,2]
[323244989,1713839447394,-580.75,0.00027123,2]
[323244991,1713839447403,-500.0,0.00027123,2]
[323244992,1713839447412,-500.0,0.00027123,2]
[323244994,1713839447422,-968.74,0.00027123,2]
[323244996,1713839447432,-500.0,0.00027123,2]
[323244998,1713839447440,-500.0,0.00027123,2]
[323245000,1713839447449,-620.3,0.00027123,2]
[323245002,1713839447458,-621.56,0.00027123,2]
[323245003,1713839447467,-500.0,0.00027123,2]
[323245004,1713839447477,-1041.4,0.00027123,2]
[323245005,1713839447488,-500.0,0.00027123,2]
[323245007,1713839447523,-612.02,0.00027123,2]
[323245009,1713839447532,-612.75,0.00027123,2]
[323245011,1713839447542,-151.0,0.00027123,2]
[323245012,1713839447553,-539.37,0.00027123,2]
[323245013,1713839447563,-1802.65,0.00027123,2]
[323245015,1713839447574,-151.0,0.00027123,2]
[323245017,1713839447584,-500.0,0.00027123,2]
[323245019,1713839447595,-500.0,0.00027123,2]
[323245020,1713839447605,-809.778158,0.00027123,2]
[323245021,1713839447616,-809.778158,0.00027123,2]
[323245022,1713839447626,-500.0,0.00027123,2]
[323245023,1713839447636,-500.0,0.00027123,2]
[323245024,1713839447648,-549.8,0.00027123,2]
[323245025,1713839447657,-521.89,0.00027123,2]
[323245026,1713839447667,-550.03,0.00027123,2]
[323245027,1713839447678,-500.0,0.00027123,2]
[323245028,1713839447688,-629.55,0.00027123,2]
[323245029,1713839447698,-545.56,0.00027123,2]
[323245030,1713839447708,-151.0,0.00027123,2]
[323245031,1713839447718,-1417.58,0.00027123,2]
[323245032,1713839447729,-1815.54,0.00027123,2]
[323245033,1713839447740,-500.0,0.00027123,2]
[323245034,1713839447750,-1763.16,0.00027123,2]
[323245035,1713839447761,-500.0,0.00027123,2]
[323245036,1713839447772,-500.0,0.00027123,2]
[323245037,1713839447782,-2362.86,0.00027123,2]
[323245038,1713839447791,-500.0,0.00027123,2]
[323245039,1713839447802,-643.4,0.00027123,2]
[323245040,1713839447811,-3374.35,0.00027123,2]
[323245042,1713839447821,-1027.25,0.00027123,2]
[323245044,1713839447829,-534.71,0.00027123,2]
[323245046,1713839447839,-500.0,0.00027123,2]
[323245048,1713839447849,-583.45,0.00027123,2]
[323245050,1713839447859,-1572.23,0.00027123,2]
[323245052,1713839447869,-3148.3,0.00027123,2]
[323245054,1713839447878,-1773.12,0.00027123,2]
[323245056,1713839447888,-500.0,0.00027123,2]
[323245058,1713839447898,-8801.41,0.00027123,2]
[323245060,1713839447907,-771.77,0.00027123,2]
[323245062,1713839447917,-778.86,0.00027123,2]
[323245064,1713839447926,-2087.97,0.00027123,2]
[323245066,1713839447935,-514.65,0.00027123,2]
[323245068,1713839447945,-603.27606872,0.00027192,7]
[323245070,1713839447955,-154.30051212,0.00027283,2]
[323245072,1713839447965,-500.0,0.00027397,2]
[323245074,1713839447975,-500.0,0.00027397,2]
[323245076,1713839447984,-500.0,0.00027397,30]
[323245078,1713839447994,-500.0,0.00027397,30]
[323245080,1713839448004,-500.0,0.00027397,30]
[323245082,1713839448016,-500.0,0.00027397,30]
[323245085,1713839448026,-500.0,0.00027397,30]
[323245087,1713839448036,-500.0,0.00027397,30]
[323245089,1713839448046,-500.0,0.00027397,30]
[323245090,1713839448055,-500.0,0.00027397,30]
[323245092,1713839448065,-500.0,0.00027397,30]
[323245094,1713839448074,-500.0,0.00027397,30]
[323245096,1713839448085,-500.0,0.00027397,30]
[323245098,1713839448095,-500.0,0.00027397,2]
[323245100,1713839448104,-508.56,0.00027397,2]
[323245102,1713839448114,-312.08150455,0.00027397,2]
[323245105,1713839448124,-500.0,0.00027397,2]
[323245107,1713839448134,-500.0,0.00027397,2]
[323245109,1713839448145,-500.0,0.00027397,2]
[323245110,1713839448154,-500.0,0.00027397,2]
[323245112,1713839448164,-500.0,0.00027397,2]
[323245114,1713839448174,-500.0,0.00027397,2]
[323245116,1713839448184,-500.0,0.00027397,2]
[323245118,1713839448193,-500.0,0.00027397,2]
[323245120,1713839448202,-500.0,0.00027397,2]
[323245122,1713839448213,-500.0,0.00027397,2]
[323245124,1713839448223,-500.0,0.00027397,2]
[323245126,1713839448232,-500.0,0.00027397,2]
[323245128,1713839448242,-500.0,0.00027397,2]
[323245130,1713839448251,-500.0,0.00027397,2]
[323245132,1713839448262,-500.0,0.00027397,2]
[323245134,1713839448271,-500.0,0.00027397,2]
[323245136,1713839448281,-500.0,0.00027397,2]
[323245138,1713839448290,-500.0,0.00027397,2]
[323245140,1713839448300,-500.0,0.00027397,2]
[323245142,1713839448310,-500.0,0.00027397,2]
[323245144,1713839448319,-500.0,0.00027397,2]
[323245146,1713839448328,-500.0,0.00027397,2]
[323245148,1713839448338,-500.0,0.00027397,2]
[323245150,1713839448347,-500.0,0.00027397,2]
[323245152,1713839448356,-500.0,0.00027397,2]
[323245154,1713839448366,-500.0,0.00027397,2]
[323245156,1713839448375,-500.0,0.00027397,2]
[323245158,1713839448383,-500.0,0.00027397,2]
[323245160,1713839448392,-500.0,0.00027397,2]
[323245162,1713839448401,-500.0,0.00027397,2]
[323245164,1713839448410,-500.0,0.00027397,2]
[323245165,1713839448419,-500.0,0.00027397,2]
[323245167,1713839448428,-494.62180066,0.00027397,2]
[323245169,1713839448437,-500.0,0.00027397,2]
[323245171,1713839448446,-500.0,0.00027397,2]
[323245173,1713839448455,-500.0,0.00027397,2]
[323245175,1713839448465,-500.0,0.00027397,2]
[323245177,1713839448475,-500.0,0.00027397,2]
[323245179,1713839448485,-500.0,0.00027397,2]
[323245181,1713839448494,-500.0,0.00027397,2]
[323245183,1713839448503,-500.0,0.00027397,2]
[323245185,1713839448513,-500.0,0.00027397,2]
[323245187,1713839448522,-500.0,0.00027397,2]
[323245189,1713839448531,-500.0,0.00027397,2]
[323245191,1713839448540,-500.0,0.00027397,2]
[323245193,1713839448549,-500.0,0.00027397,2]
[323245195,1713839448558,-500.0,0.00027397,2]
[323245197,1713839448567,-500.0,0.00027397,2]
[323245199,1713839448576,-500.0,0.00027397,2]
[323245201,1713839448585,-500.0,0.00027397,2]
[323245203,1713839448594,-500.0,0.00027397,2]
[323245205,1713839448602,-500.0,0.00027397,2]
[323245207,1713839448612,-500.0,0.00027397,2]
[323245209,1713839448621,-500.0,0.00027397,2]
[323245210,1713839448630,-500.0,0.00027397,2]
[323245213,1713839448640,-500.0,0.00027397,2]
[323245214,1713839448652,-500.0,0.00027397,2]
[323245216,1713839448661,-400.0,0.00027397,2]
[323245218,1713839448670,-500.0,0.00027397,2]
[323245220,1713839448679,-500.0,0.00027397,2]
[323245222,1713839448689,-500.0,0.00027397,2]
[323245224,1713839448698,-500.0,0.00027397,2]
[323245226,1713839448707,-500.0,0.00027397,2]
[323245228,1713839448717,-500.0,0.00027397,2]
[323245230,1713839448725,-500.0,0.00027397,2]
[323245232,1713839448734,-500.0,0.00027397,2]
[323245234,1713839448743,-500.0,0.00027397,2]
[323245236,1713839448752,-500.0,0.00027397,2]
[323245238,1713839448762,-500.0,0.00027397,2]
[323245240,1713839448771,-500.0,0.00027397,2]
[323245242,1713839448780,-500.0,0.00027397,2]
[323245244,1713839448788,-500.0,0.00027397,2]
[323245246,1713839448799,-500.0,0.00027397,2]
[323245248,1713839448809,-500.0,0.00027397,2]
[323245250,1713839448818,-500.0,0.00027397,2]
[323245252,1713839448827,-500.0,0.00027397,2]
[323245254,1713839448836,-500.0,0.00027397,2]
[323245256,1713839448846,-514.031455,0.00027397,14]
[323245258,1713839448854,-500.0,0.00027397,2]
[323245260,1713839448863,-500.0,0.00027397,2]
[323245262,1713839448873,-500.0,0.00027397,2]
[323245264,1713839448882,-1094.07,0.00027397,2]
[323245266,1713839448890,-580.75,0.00027397,2]
[323245268,1713839448899,-500.0,0.00027397,2]
[323245270,1713839448908,-151.0,0.00027397,2]
[323245272,1713839448917,-500.0,0.00027397,2]
[323245274,1713839448926,-968.74,0.00027397,2]
[323245276,1713839448935,-151.0,0.00027397,2]
[323245278,1713839448944,-500.0,0.00027397,2]
[323245280,1713839448953,-500.0,0.00027397,2]
[323245282,1713839448962,-620.3,0.00027397,2]
[323245284,1713839448971,-621.56,0.00027397,2]
[323245286,1713839448980,-500.0,0.00027397,2]
[323245288,1713839448989,-1041.4,0.00027397,2]
[323245290,1713839448998,-500.0,0.00027397,2]
[323245292,1713839449007,-612.02,0.00027397,2]
[323245294,1713839449017,-612.75,0.00027397,2]
[323245296,1713839449027,-1131.93,0.00027397,2]
[323245298,1713839449035,-1131.93,0.00027397,2]
[323245300,1713839449044,-1131.93,0.00027397,2]
[323245302,1713839449053,-1131.93,0.00027397,2]
[323245304,1713839449062,-1131.93,0.00027397,2]
[323245306,1713839449071,-1131.93,0.00027397,2]
[323245308,1713839449080,-1131.93,0.00027397,2]
[323245310,1713839449090,-1131.93,0.00027397,2]
[323245311,1713839449099,-1131.93,0.00027397,2]
[323245313,1713839449108,-1131.93,0.00027397,2]
[323245315,1713839449117,-1131.93,0.00027397,2]
[323245317,1713839449130,-539.37,0.00027397,2]
[323245319,1713839449139,-1802.65,0.00027397,2]
[323245321,1713839449148,-500.0,0.00027397,2]
[323245323,1713839449157,-500.0,0.00027397,2]
[323245325,1713839449167,-500.0,0.00027397,2]
[323245327,1713839449176,-500.0,0.00027397,2]
[323245329,1713839449187,-549.8,0.00027397,2]
[323245331,1713839449196,-521.89,0.00027397,2]
[323245333,1713839449205,-550.03,0.00027397,2]
[323245335,1713839449214,-500.0,0.00027397,2]
[323245337,1713839449223,-629.55,0.00027397,2]
[323245339,1713839449232,-545.56,0.00027397,2]
[323245341,1713839449242,-1417.58,0.00027397,2]
[323245343,1713839449252,-1815.54,0.00027397,2]
[323245345,1713839449260,-500.0,0.00027397,2]
[323245347,1713839449270,-1763.16,0.00027397,2]
[323245358,1713839449364,-500.0,0.00027397,2]
[323245360,1713839449374,-1040.25280545,0.00027397,14]
[323245362,1713839449383,-500.0,0.00027397,2]
[323245364,1713839449392,-2362.86,0.00027397,2]
[323245366,1713839449401,-500.0,0.00027397,2]
[323245368,1713839449411,-643.4,0.00027397,2]
[323245370,1713839449420,-3374.35,0.00027397,2]
[323245372,1713839449429,-1027.25,0.00027397,2]
[323245374,1713839449438,-534.71,0.00027397,2]
[323245376,1713839449448,-500.0,0.00027397,2]
[323245378,1713839449458,-2726.42,0.00027397,2]
[323245380,1713839449467,-583.45,0.00027397,2]
[323245382,1713839449476,-1572.23,0.00027397,2]
[323245384,1713839449485,-294.987888,0.00027397,2]
[323245386,1713839449494,-3148.3,0.00027397,2]
[323245388,1713839449503,-294.987888,0.00027397,2]
[323245390,1713839449512,-1773.12,0.00027397,2]
[323245392,1713839449521,-500.0,0.00027397,2]
[323245394,1713839449530,-8801.41,0.00027397,2]
[323245396,1713839449539,-771.77,0.00027397,2]
[323245398,1713839449548,-778.86,0.00027397,2]
[323245400,1713839449558,-2087.97,0.00027397,2]
[323245402,1713839449567,-514.65,0.00027397,2]
[323245404,1713839449575,-400.3277968,0.00027397,2]
[323245406,1713839449584,-217.7451,0.00027397,2]
[323245408,1713839449594,-166.666666,0.00027397,2]
[323245410,1713839449603,-10000.0,0.00027397,2]
[323245412,1713839449612,-186.061391,0.00027397,2]
[323245414,1713839449621,-1000.0,0.00027397,2]
[323245416,1713839449630,-1741.88390722,0.000274,2]
[323245418,1713839449641,-154.82968734,0.000274,2]
[323245420,1713839449653,-163.76753767,0.00027409,2]
[323245422,1713839449662,-1663.43823622,0.00027468,2]
[323245424,1713839449671,-801.93433155,0.000275,17]
[323245426,1713839449681,-154.76254067,0.00027558,2]
[323245428,1713839449691,-1348.61137657,0.00027561,2]
[323245431,1713839449700,-1663.43823622,0.00027609,2]
[323245433,1713839449709,-1000.0,0.00027654,2]
[323245434,1713839449718,-1663.43823622,0.00027657,2]
[323245437,1713839449729,-154.76254067,0.00027661,2]
[323245439,1713839449739,-500.0,0.00027668,2]
[323245441,1713839449748,-500.0,0.00027671,2]
[323245443,1713839449757,-500.0,0.00027671,7]
[323245445,1713839449767,-500.0,0.00027671,30]
[323245446,1713839449775,-500.0,0.00027671,7]
[323245448,1713839449785,-508.56,0.00027671,7]
[323245450,1713839449794,-500.0,0.00027671,7]
[323245452,1713839449805,-500.0,0.00027671,7]
[323245455,1713839449815,-500.0,0.00027671,7]
[323245457,1713839449824,-500.0,0.00027671,7]
[323245458,1713839449833,-500.0,0.00027671,7]
[323245460,1713839449842,-500.0,0.00027671,7]
[323245462,1713839449851,-500.0,0.00027671,7]
[323245465,1713839449862,-1094.07,0.00027671,7]
[323245467,1713839449871,-580.75,0.00027671,7]
[323245468,1713839449879,-500.0,0.00027671,7]
[323245471,1713839449888,-500.0,0.00027671,2]
[323245473,1713839449898,-968.74,0.00027671,7]
[323245474,1713839449907,-377.5297891,0.00027671,7]
[323245476,1713839449916,-500.0,0.00027671,7]
[323245478,1713839449925,-620.3,0.00027671,7]
[323245481,1713839449934,-621.56,0.00027671,7]
[323245483,1713839449943,-500.0,0.00027671,7]
[323245484,1713839449952,-1041.4,0.00027671,7]
[323245486,1713839449962,-500.0,0.00027671,7]
[323245488,1713839449971,-612.02,0.00027671,7]
[323245491,1713839449980,-612.75,0.00027671,7]
[323245492,1713839449990,-1131.93,0.00027671,2]
[323245494,1713839449998,-539.37,0.00027671,7]
[323245496,1713839450007,-1802.65,0.00027671,7]
[323245498,1713839450019,-151.0,0.00027671,2]
[323245500,1713839450028,-500.0,0.00027671,7]
[323245502,1713839450037,-351.39002872,0.00027671,7]
[323245504,1713839450046,-809.778158,0.00027671,2]
[323245506,1713839450057,-809.778158,0.00027671,2]
[323245508,1713839450066,-500.0,0.00027671,7]
[323245510,1713839450076,-500.0,0.00027671,7]
[323245512,1713839450086,-549.8,0.00027671,7]
[323245514,1713839450096,-521.89,0.00027671,7]
[323245516,1713839450105,-550.03,0.00027671,7]
[323245519,1713839450115,-500.0,0.00027671,7]
[323245521,1713839450124,-629.55,0.00027671,7]
[323245523,1713839450135,-545.56,0.00027671,7]
[323245524,1713839450145,-151.0,0.00027671,2]
[323245526,1713839450154,-1417.58,0.00027671,7]
[323245527,1713839450163,-1815.54,0.00027671,7]
[323245528,1713839450172,-500.0,0.00027671,7]
[323245530,1713839450181,-1763.16,0.00027671,7]
[323245531,1713839450190,-278.97014396,0.00027671,7]
[323245532,1713839450199,-151.0,0.00027671,2]
[323245533,1713839450209,-500.0,0.00027671,7]
[323245535,1713839450221,-2362.86,0.00027671,7]
[323245537,1713839450231,-500.0,0.00027671,7]
[323245538,1713839450240,-643.4,0.00027671,7]
[323245540,1713839450250,-3374.35,0.00027671,7]
[323245541,1713839450260,-1027.25,0.00027671,7]
[323245542,1713839450271,-534.71,0.00027671,7]
[323245543,1713839450281,-294.89113073,0.00027671,7]
[323245544,1713839450290,-583.45,0.00027671,7]
[323245546,1713839450299,-1572.23,0.00027671,7]
[323245548,1713839450309,-3148.3,0.00027671,7]
[323245549,1713839450318,-1773.12,0.00027671,7]
[323245550,1713839450327,-500.0,0.00027671,7]
[323245551,1713839450337,-8801.41,0.00027671,7]
[323245552,1713839450346,-771.77,0.00027671,7]
[323245553,1713839450356,-778.86,0.00027671,7]
[323245554,1713839450365,-2087.97,0.00027671,7]
[323245555,1713839450373,-514.65,0.00027671,7]
[323245556,1713839450383,-1000.0,0.00027673,2]
[323245557,1713839450392,-514.51239352,0.00027678,2]
[323245558,1713839450400,-1000.0,0.00027683,2]
[323245559,1713839450410,-221.58126833,0.00027708,2]
[323245560,1713839450419,-1000.0,0.00027713,2]
[323245561,1713839450428,-1000.0,0.00027713,2]
[323245562,1713839450438,-155.84795945,0.00027719,3]
[323245563,1713839450447,-1000.0,0.0002772,2]
[323245564,1713839450456,-1348.61137657,0.00027728,2]
[323245565,1713839450466,-1000.0,0.0002773,2]
[323245566,1713839450474,-1000.0,0.00027757,2]
[323245567,1713839450484,-1000.0,0.0002776,2]
[323245568,1713839450493,-1000.0,0.00027777,2]
[323245569,1713839450502,-1000.0,0.00027785,2]
[323245570,1713839450512,-1000.0,0.00027798,2]
[323245571,1713839450522,-154.30051212,0.00027799,2]
[323245572,1713839450531,-1000.0,0.00027834,2]
[323245573,1713839450541,-1000.0,0.00027846,2]
[323245574,1713839450550,-1000.0,0.00027846,2]
[323245575,1713839450559,-1000.0,0.00027851,2]
[323245576,1713839450569,-237.6959,0.0002786,2]
[323245577,1713839450578,-1000.0,0.00027861,2]
[323245578,1713839450587,-1000.0,0.00027866,2]
[323245579,1713839450597,-1000.0,0.00027872,2]
[323245580,1713839450606,-1206.55213744,0.0002788,30]
[323245581,1713839450615,-1000.0,0.00027887,2]
[323245582,1713839450624,-1000.0,0.00027913,2]
[323245583,1713839450634,-500.0,0.00027945,2]
[323245584,1713839450645,-500.0,0.00027945,7]
[323245585,1713839450655,-500.0,0.00027945,30]
[323245586,1713839450664,-500.0,0.00027945,7]
[323245587,1713839450674,-508.56,0.00027945,7]
[323245588,1713839450683,-500.0,0.00027945,7]
[323245589,1713839450693,-500.0,0.00027945,7]
[323245590,1713839450702,-500.0,0.00027945,7]
[323245591,1713839450711,-500.0,0.00027945,7]
[323245592,1713839450720,-500.0,0.00027945,7]
[323245593,1713839450729,-262.37527444,0.00027945,7]
[323245594,1713839450740,-500.0,0.00027945,7]
[323245595,1713839450749,-1094.07,0.00027945,7]
[323245596,1713839450757,-580.75,0.00027945,7]
[323245597,1713839450767,-500.0,0.00027945,7]
[323245598,1713839450776,-500.0,0.00027945,2]
[323245599,1713839450785,-968.74,0.00027945,7]
[323245600,1713839450794,-500.0,0.00027945,7]
[323245601,1713839450804,-620.3,0.00027945,7]
[323245602,1713839450814,-621.56,0.00027945,7]
[323245603,1713839450823,-500.0,0.00027945,7]
[323245604,1713839450833,-1041.4,0.00027945,7]
[323245605,1713839450842,-500.0,0.00027945,7]
[323245606,1713839450852,-612.02,0.00027945,7]
[323245607,1713839450862,-612.75,0.00027945,7]
[323245608,1713839450871,-1131.93,0.00027945,2]
[323245609,1713839450880,-539.37,0.00027945,7]
[323245610,1713839450890,-1802.65,0.00027945,7]
[323245611,1713839450899,-500.0,0.00027945,7]
[323245613,1713839450907,-500.0,0.00027945,7]
[323245615,1713839450917,-500.0,0.00027945,7]
[323245616,1713839450926,-549.8,0.00027945,7]
[323245618,1713839450935,-521.89,0.00027945,7]
[323245619,1713839450944,-550.03,0.00027945,7]
[323245621,1713839450954,-500.0,0.00027945,7]
[323245622,1713839450963,-629.55,0.00027945,7]
[323245623,1713839450974,-545.56,0.00027945,7]
[323245624,1713839450983,-1417.58,0.00027945,7]
[323245625,1713839450993,-500.0,0.00027945,7]
[323245626,1713839451004,-1815.54,0.00027945,7]
[323245627,1713839451014,-1763.16,0.00027945,7]
[323245628,1713839451024,-500.0,0.00027945,7]
[323245629,1713839451034,-2362.86,0.00027945,7]
[323245630,1713839451043,-500.0,0.00027945,7]
[323245631,1713839451053,-643.4,0.00027945,7]
[323245632,1713839451064,-3374.35,0.00027945,7]
[323245633,1713839451074,-1027.25,0.00027945,7]
[323245634,1713839451084,-534.71,0.00027945,7]
[323245635,1713839451095,-583.45,0.00027945,7]
[323245636,1713839451105,-1572.23,0.00027945,7]
[323245637,1713839451114,-3148.3,0.00027945,7]
[323245638,1713839451124,-1773.12,0.00027945,7]
[323245639,1713839451134,-500.0,0.00027945,7]
[323245640,1713839451144,-8801.41,0.00027945,7]
[323245641,1713839451154,-771.77,0.00027945,7]
[323245642,1713839451164,-778.86,0.00027945,7]
[323245643,1713839451174,-2087.97,0.00027945,7]
[323245644,1713839451184,-151922.8334557,0.00028,2]
[323245648,1713839451963,-500.0,0.00024657,2]
[323245649,1713839451975,-596.83635133,0.00025204,2]
[323245650,1713839451985,-205.833022,0.00026849,2]
[323245651,1713839451995,-151.0,0.00026849,2]
[323245652,1713839452004,-205.833022,0.00027397,2]
[323245653,1713839452015,-151.0,0.00027397,2]
[323245654,1713839452024,-514.65,0.00027945,7]
[323245655,1713839452034,-19385.11524427,0.00028,2]
[323245656,1713839452120,-329.62886819,0.00024656,2]
[323245657,1713839452130,-2359.19048124,0.00028,2]
[323245658,1713839452234,-1057.03497015,0.00024655,2]
[323245659,1713839452245,-358.72010738,0.00024656,2]
[323245660,1713839452256,-500.0,0.00024931,2]
[323245661,1713839452266,-155.37912234,0.00025204,2]
[323245662,1713839452276,-154.82968734,0.00025204,2]
[323245663,1713839452285,-16268.37675051,0.00025204,2]
[323245669,1713840343150,150.83408251,0.00023611,30]
[323245670,1713840343212,150.83408251,0.00023139,120]
[323245687,1713840632721,-574.69239176,0.00017156,2]
[323245689,1713840632733,-1524.77969321,0.00017156,2]
[323245691,1713840632742,-272.57129579,0.00017157,2]
[323245693,1713840632751,-701.94771615,0.00017157,2]
[323245695,1713840632760,-181.85698219,0.00017158,2]
[323245697,1713840632769,-596.83635133,0.00017159,2]
[323245699,1713840632778,-300.0,0.0001716,2]
[323245701,1713840632787,-300.0,0.0001716,2]
[323245703,1713840632797,-1057.03497015,0.0001716,2]
[323245705,1713840632807,-329.62886819,0.0001716,2]
[323245707,1713840632816,-938.58206509,0.0001716,2]
[323245709,1713840632825,-927.73627561,0.0001716,2]
[323245711,1713840632834,-187.28344922,0.0001716,2]
[323245713,1713840632843,-187.28344922,0.0001716,2]
[323245715,1713840632852,-4205.12939845,0.00017161,2]
[323245717,1713840632862,-20992.51378818,0.00017161,2]
[323245731,1713840638740,-972.0795421,0.00017161,2]
[323245732,1713840638796,-37195.06724705,0.00017161,2]
[323245733,1713840638805,-186.766708,0.00017177,2]
[323245734,1713840638816,-409984.92201702,0.00018183,2]
[323245735,1713840638828,-24900.0,0.00018184,2]
[323245736,1713840638837,-603.3578092,0.000185,2]
[323245737,1713840638848,-420.0,0.00018876,2]
[323245738,1713840638857,-189.19295912,0.0001897,2]
[323245739,1713840638866,-500.0,0.00019178,2]
[323245740,1713840638875,-500.0,0.00019178,2]
[323245741,1713840638885,-500.0,0.00019178,2]
[323245742,1713840638894,-500.0,0.00019178,2]
[323245743,1713840638903,-544.26202431,0.00019178,2]
[323245744,1713840638913,-500.0,0.00019178,2]
[323245745,1713840638925,-528.55478209,0.00019178,2]
[323245746,1713840638935,-351.77094613,0.00019178,2]
[323245747,1713840638946,-500.0,0.00019178,2]
[323245748,1713840638956,-469.28814508,0.00019178,2]
[323245749,1713840638965,-207.43836202,0.00019178,2]
[323245750,1713840638973,-387.49141605,0.00019178,2]
[323245751,1713840638983,-168.363873,0.00019178,2]
[323245752,1713840638993,-319.72058798,0.0002,2]
[323245753,1713840639001,-689.46452953,0.0002,2]